bitfinex/quotes_BTCUSD_20241111
["timestamp","ask_amount","ask_price","bid_price","bid_amount"]
[1731330849276,0.18856146,81699.0,81687.0,0.122417]
[1731330849512,0.18856146,81699.0,81694.0,0.122407]
[1731330849513,0.18356146,81699.0,81694.0,0.122407]
[1731330849714,0.18356146,81699.0,81675.0,0.25]
[1731330849715,0.30596246,81699.0,81685.0,0.171389]
[1731330849918,0.09,81700.0,81677.0,0.1]
[1731330850130,0.30950367,81699.0,81677.0,0.1]
[1731330850340,0.12594221,81699.0,81687.0,0.171385]
[1731330850596,0.18356146,81698.0,81693.0,0.122408]
[1731330850826,0.20602269,81698.0,81693.0,0.122408]
[1731330851037,0.02246123,81697.0,81694.0,0.122407]
[1731330851251,0.09,81700.0,81681.0,0.171397]
[1731330851252,0.09,81700.0,81690.0,0.18356146]
[1731330851463,0.09,81700.0,81699.0,0.1224]
[1731330851646,0.11245351,81700.0,81699.0,0.1224]
[1731330852501,0.09,81700.0,81699.0,0.1224]
[1731330853367,0.09,81700.0,81699.0,0.37134221]
[1731330853579,0.09,81700.0,81699.0,0.45456395]
[1731330853824,0.09,81700.0,81699.0,0.00322311]
[1731330854070,0.09,81700.0,81699.0,0.12562311]
[1731330854290,0.09,81700.0,81699.0,0.1224]
[1731330854503,0.09,81700.0,81699.0,0.125628]
[1731330855160,0.09,81700.0,81699.0,0.37457021]
[1731330856175,0.09,81700.0,81699.0,0.35157021]
[1731330856378,0.09,81700.0,81699.0,0.40366373]
[1731330856586,0.09,81700.0,81699.0,0.35137021]
[1731330857177,0.09,81700.0,81699.0,0.225428]
[1731330858015,0.09,81700.0,81699.0,0.125428]
[1731330858769,1.59,81700.0,81699.0,0.003228]
[1731330858978,1.73487168,81700.0,81693.0,0.122408]
[1731330859262,0.02247186,81699.0,81681.0,0.18356146]
[1731330859464,1.59,81700.0,81683.0,0.171394]
[1731330859679,0.18356146,81699.0,81695.0,0.122405]
[1731330859879,0.18356146,81699.0,81682.0,0.00153354]
[1731330860102,1.59,81700.0,81696.0,0.122404]
[1731330860263,0.18356146,81699.0,81695.0,0.122405]
[1731330860487,1.59,81700.0,81696.0,0.122404]
[1731330860677,1.59,81700.0,81683.0,0.171394]
[1731330860941,1.59,81700.0,81696.0,0.122404]
[1731330861456,1.59,81700.0,81688.0,0.1]
[1731330861675,1.59,81700.0,81697.0,0.122402]
[1731330861885,1.59,81700.0,81687.0,0.171385]
[1731330861886,1.59,81700.0,81688.0,0.1]
[1731330862101,1.59,81700.0,81696.0,0.122404]
[1731330862102,1.09,81700.0,81696.0,0.122404]
[1731330862311,1.09,81700.0,81693.0,0.171371]
[1731330862312,1.09,81700.0,81697.0,0.122402]
[1731330862524,1.09,81700.0,81675.0,0.25]
[1731330862746,0.30950367,81699.0,81675.0,0.25]
[1731330862968,0.122407,81695.0,81690.0,0.122413]
[1731330863182,0.122405,81696.0,81690.0,0.122313]
[1731330863396,0.55430467,81699.0,81690.0,0.122313]
[1731330863600,0.244804,81698.0,81690.0,0.122313]
[1731330863820,0.005,81684.0,81682.0,0.00153354]
[1731330864049,0.12594221,81683.0,81682.0,0.00153354]
[1731330864328,0.03592129,81690.0,81679.0,0.171402]
[1731330864553,0.12242,81686.0,81680.0,0.1647056]
[1731330864761,0.244835,81688.0,81680.0,0.1647056]
[1731330864762,0.122418,81688.0,81681.0,0.122426]
[1731330864992,0.03592129,81688.0,81679.0,0.171402]
[1731330865207,0.122417,81688.0,81682.0,0.122425]
[1731330865412,0.005,81685.0,81679.0,0.12243]
[1731330865621,0.122434,81676.0,81672.0,0.0002]
[1731330865838,0.25337621,81676.0,81672.0,0.0002]
[1731330866059,0.13094221,81676.0,81675.0,0.372436]
[1731330866283,0.005,81679.0,81676.0,0.122434]
[1731330866494,0.005,81679.0,81675.0,0.25]
[1731330866700,0.005,81679.0,81677.0,0.122432]
[1731330867551,0.0768,81685.0,81675.0,0.25]
[1731330867756,0.0818,81685.0,81675.0,0.25]
[1731330867964,0.0818,81685.0,81679.0,0.12243]
[1731330867965,0.005,81680.0,81679.0,0.12243]
[1731330869048,0.035,81681.0,81680.0,0.122428]
[1731330869257,0.005,81681.0,81680.0,0.122428]
[1731330869932,0.005,81684.0,81683.0,0.122424]
[1731330870381,0.03589528,81693.0,81684.0,0.122422]
[1731330870382,0.005,81688.0,81684.0,0.122422]
[1731330870607,0.03589528,81696.0,81695.0,0.122406]
[1731330870823,0.005,81698.0,81697.0,0.122403]
[1731330871269,1.091688,81700.0,81699.0,0.1224]
[1731330871705,1.091688,81700.0,81699.0,0.12561963]
[1731330871958,1.091688,81700.0,81699.0,0.18959169]
[1731330872197,1.21763021,81700.0,81699.0,0.00321963]
[1731330872411,0.005,81680.0,81679.0,0.18356146]
[1731330872837,0.005,81680.0,81675.0,0.25]
[1731330872838,0.005,81685.0,81677.0,0.171406]
[1731330873077,0.005,81694.0,81676.0,0.04582459]
[1731330873330,0.005,81695.0,81685.0,0.171388]
[1731330873567,0.18356146,81690.0,81689.0,0.122415]
[1731330873790,0.18356146,81699.0,81698.0,0.122402]
[1731330873996,1.091688,81700.0,81699.0,0.1224]
[1731330876268,1.091688,81700.0,81699.0,0.12568731]
[1731330876526,1.091688,81700.0,81699.0,0.27318247]
[1731330876747,1.091688,81700.0,81688.0,0.005]
[1731330876748,1.091688,81700.0,81695.0,0.122406]
[1731330876976,1.091688,81700.0,81692.0,0.159133]
[1731330877202,1.091688,81700.0,81696.0,0.122404]
[1731330877426,1.091688,81700.0,81699.0,0.000844]
[1731330877661,1.214087,81700.0,81699.0,0.000844]
[1731330877871,1.39412921,81700.0,81699.0,0.000844]
[1731330878085,1.4317587,81700.0,81699.0,0.000844]
[1731330878526,2.9367587,81700.0,81699.0,0.000844]
[1731330878743,2.9387587,81700.0,81699.0,0.000844]
[1731330878938,2.9367587,81700.0,81699.0,0.000844]
[1731330879153,3.06270091,81700.0,81699.0,0.000844]
[1731330879380,2.9417587,81700.0,81699.0,0.000844]
[1731330879596,2.9367587,81700.0,81699.0,0.000844]
[1731330880520,2.9317587,81700.0,81699.0,0.000844]
[1731330881176,2.63431749,81700.0,81699.0,0.000844]
[1731330881391,2.75671649,81700.0,81699.0,0.000844]
[1731330881600,2.719087,81700.0,81699.0,0.000844]
[1731330882059,2.596688,81700.0,81699.0,0.000844]
[1731330882306,2.63433444,81700.0,81699.0,0.123244]
[1731330882509,2.596688,81700.0,81699.0,0.123244]
[1731330882717,2.591688,81700.0,81699.0,0.123244]
[1731330884251,1.091688,81700.0,81699.0,0.123244]
[1731330886925,1.42272921,81700.0,81699.0,0.000844]
[1731330887155,0.122407,81695.0,81690.0,0.122413]
[1731330887360,1.5,81694.0,81690.0,0.122413]
[1731330887575,1.5,81694.0,81687.0,0.159144]
[1731330887576,1.5,81694.0,81691.0,0.122411]
[1731330887796,0.005,81692.0,81691.0,0.122411]
[1731330888069,1.5,81694.0,81693.0,0.122409]
[1731330890298,1.5,81694.0,81693.0,0.222409]
[1731330890479,1.091688,81700.0,81699.0,0.2224]
[1731330890912,2.591688,81700.0,81699.0,0.2224]
[1731330892199,1.091688,81700.0,81699.0,0.2224]
[1731330892636,1.091688,81700.0,81699.0,0.35334221]
[1731330892885,1.091688,81700.0,81699.0,0.37634221]
[1731330893122,1.091688,81700.0,81699.0,0.35334221]
[1731330893350,1.091688,81700.0,81699.0,0.56334221]
[1731330893567,1.091688,81700.0,81699.0,0.44076561]
[1731330897037,1.091688,81700.0,81699.0,0.56670782]
[1731330899531,1.091688,81700.0,81699.0,0.55170782]
[1731330900374,1.091688,81700.0,81699.0,0.57470782]
[1731330900789,1.091688,81700.0,81699.0,0.57555182]
[1731330901214,0.969288,81700.0,81699.0,0.57555182]
[1731330904158,0.969288,81700.0,81699.0,0.42660961]
[1731330904604,0.969288,81700.0,81699.0,0.42160961]
[1731330904809,0.974288,81700.0,81699.0,0.318244]
[1731330905074,1.22462921,81700.0,81699.0,0.210844]
[1731330905307,2.72962921,81700.0,81699.0,0.000844]
[1731330908135,2.474288,81700.0,81699.0,0.000844]
[1731330908358,2.474288,81700.0,81699.0,0.0168412]
[1731330908573,2.474288,81700.0,81699.0,0.000844]
[1731330908786,2.476288,81700.0,81699.0,0.000844]
[1731330908964,2.474288,81700.0,81699.0,0.000844]
[1731330909214,2.476288,81700.0,81699.0,0.000844]
[1731330909431,2.72962921,81700.0,81699.0,0.000844]
[1731330910081,2.72462921,81700.0,81699.0,0.000844]
[1731330910302,2.72262921,81700.0,81699.0,0.000844]
[1731330910509,2.474288,81700.0,81699.0,0.000844]
[1731330910719,2.474288,81700.0,81699.0,0.123244]
[1731330910939,0.974288,81700.0,81699.0,0.1514808]
[1731330911790,0.969288,81700.0,81699.0,0.1514808]
[1731330912434,0.969288,81700.0,81699.0,0.2514808]
[1731330913118,0.969288,81700.0,81699.0,0.37742301]
[1731330913989,0.969288,81700.0,81699.0,0.38052386]
[1731330914983,0.969288,81700.0,81699.0,0.40352386]
[1731330915302,0.27968624,81700.0,81699.0,0.52952386]
[1731330915713,0.18176624,81700.0,81699.0,0.52952386]
[1731330915923,0.15728624,81700.0,81699.0,0.52952386]
[1731330916124,0.15728624,81700.0,81699.0,0.76952386]
[1731330916337,0.18356146,81716.0,81715.0,0.005]
[1731330916562,0.18356146,81716.0,81715.0,0.37631821]
[1731330916767,0.18356146,81738.0,81715.0,0.37631821]
[1731330916768,0.18356146,81738.0,81726.0,0.22236]
[1731330916974,0.18356146,81738.0,81726.0,0.34830221]
[1731330917333,0.18356146,81738.0,81737.0,0.122343]
[1731330917802,1.5,81741.0,81740.0,0.122339]
[1731330918392,0.0798,81750.0,81749.0,0.122325]
[1731330918582,0.005,81756.0,81747.0,0.159025]
[1731330918785,0.005,81756.0,81735.0,0.1]
[1731330918786,0.18356146,81752.0,81751.0,0.122322]
[1731330918983,0.005,81748.0,81747.0,0.159025]
[1731330920377,0.0818,81760.0,81744.0,0.159032]
[1731330920378,0.005,81752.0,81751.0,0.122322]
[1731330920555,0.005,81754.0,81753.0,0.122319]
[1731330920965,1.505,81754.0,81753.0,0.122319]
[1731330922826,0.005,81747.0,81746.0,0.122328]
[1731330923046,0.005,81739.0,81738.0,0.159044]
[1731330923275,0.005,81739.0,81720.0,0.005]
[1731330923276,0.005,81735.0,81734.0,0.159051]
[1731330923691,1.505,81735.0,81734.0,0.159051]
[1731330924326,1.5,81735.0,81734.0,0.159051]
[1731330924681,1.5,81735.0,81734.0,0.259051]
[1731330924888,1.5,81735.0,81734.0,0.38499321]
[1731330925094,0.005,81752.0,81751.0,0.122322]
[1731330925552,1.505,81752.0,81751.0,0.122322]
[1731330925740,0.005,81746.0,81745.0,0.146797]
[1731330926115,0.005,81744.0,81743.0,0.122334]
[1731330926316,0.005,81744.0,81742.0,0.122335]
[1731330926543,0.005,81744.0,81743.0,0.122334]
[1731330927628,0.005,81745.0,81744.0,0.122333]
[1731330927837,0.005,81747.0,81746.0,0.12233]
[1731330928443,0.005,81747.0,81744.0,0.122333]
[1731330928854,0.005,81747.0,81745.0,0.122331]
[1731330929277,0.007,81747.0,81742.0,0.122335]
[1731330929517,0.005,81747.0,81742.0,0.122335]
[1731330929747,0.005,81747.0,81745.0,0.122331]
[1731330930543,1.5,81752.0,81732.0,0.12235]
[1731330930544,0.005,81735.0,81732.0,0.12235]
[1731330931085,1.5,81734.0,81733.0,0.122348]
[1731330934711,1.5,81734.0,81728.0,0.18356146]
[1731330934712,0.005,81744.0,81743.0,0.122334]
[1731330935034,0.0471,81755.0,81747.0,0.122328]
[1731330935035,0.005,81748.0,81747.0,0.122328]
[1731330935236,1.505,81748.0,81747.0,0.122328]
[1731330935675,0.005,81751.0,81729.0,0.123]
[1731330935887,0.005,81751.0,81750.0,0.122324]
[1731330936316,1.505,81751.0,81750.0,0.122324]
[1731330936522,1.505,81751.0,81749.0,0.122324]
[1731330936779,1.5,81751.0,81750.0,0.122324]
[1731330937661,0.005,81754.0,81753.0,0.122319]
[1731330938084,0.005,81756.0,81755.0,0.122316]
[1731330940212,0.005,81760.0,81759.0,0.12231]
[1731330940424,0.001686,81761.0,81760.0,0.122309]
[1731330941331,1.501686,81761.0,81760.0,0.122309]
[1731330942377,0.001686,81761.0,81760.0,0.122309]
[1731330948322,0.001686,81761.0,81760.0,0.245309]
[1731330949630,0.001686,81761.0,81760.0,0.24775456]
[1731330949844,0.001686,81761.0,81760.0,0.37125121]
[1731330954407,0.001686,81761.0,81760.0,0.43125121]
[1731330955242,0.001686,81761.0,81760.0,0.45547994]
[1731330955457,0.001686,81761.0,81760.0,0.46047994]
[1731330955682,1e-06,81761.0,81760.0,0.46047994]
[1731330957009,1e-06,81761.0,81760.0,0.54237994]
[1731330957219,0.001,81766.0,81765.0,0.127301]
[1731330957432,0.001,81766.0,81765.0,0.37624321]
[1731330958264,0.001,81774.0,81773.0,0.245289]
[1731330958452,0.001,81774.0,81773.0,0.37123121]
[1731330961181,0.002686,81774.0,81773.0,0.37123121]
[1731330962901,0.002686,81774.0,81773.0,0.37432192]
[1731330963328,0.002686,81774.0,81773.0,0.22537971]
[1731330964160,0.002686,81774.0,81773.0,0.10309071]
[1731330964367,0.002686,81774.0,81773.0,0.22537971]
[1731330964780,0.002686,81774.0,81773.0,0.10309071]
[1731330964996,0.002686,81774.0,81773.0,0.22537971]
[1731330965415,0.002686,81774.0,81773.0,0.00309071]
[1731330965617,0.002686,81774.0,81773.0,0.22537971]
[1731330965795,0.002686,81774.0,81773.0,0.222289]
[1731330966025,0.0815,81780.0,81776.0,0.122284]
[1731330966258,0.0815,81780.0,81776.0,0.122285]
[1731330966458,0.0815,81780.0,81773.0,0.1]
[1731330966459,0.002,81779.0,81773.0,0.1]
[1731330966667,0.002,81779.0,81769.0,0.00304061]
[1731330966668,0.0815,81780.0,81771.0,0.1]
[1731330966841,0.0815,81780.0,81777.0,0.122283]
[1731330967057,1.5,81779.0,81777.0,0.122283]
[1731330967261,1.5,81779.0,81771.0,0.1]
[1731330967262,1.5,81779.0,81773.0,0.1]
[1731330967478,0.244567,81777.0,81771.0,0.1]
[1731330967692,0.0815,81780.0,81766.0,0.1]
[1731330967693,0.124293,81771.0,81766.0,0.1]
[1731330967895,0.122296,81769.0,81766.0,0.1]
[1731330968096,0.122296,81769.0,81761.0,0.18356146]
[1731330968097,0.122298,81767.0,81761.0,0.18356146]
[1731330968282,1.5,81769.0,81761.0,0.18356146]
[1731330968283,0.122303,81764.0,81761.0,0.18356146]
[1731330968509,0.046,81766.0,81760.0,0.06]
[1731330968690,0.046,81766.0,81762.0,0.122304]
[1731330969139,0.046,81766.0,81764.0,0.122302]
[1731330969570,0.046,81766.0,81762.0,0.244609]
[1731330969777,0.046,81766.0,81765.0,0.122301]
[1731330969969,1.5,81769.0,81768.0,0.122297]
[1731330970155,0.0815,81780.0,81766.0,0.02544582]
[1731330970365,0.0815,81780.0,81779.0,0.12228]
[1731330970998,0.002,81779.0,81764.0,0.146763]
[1731330971227,0.002,81779.0,81759.0,0.18356146]
[1731330971228,0.002,81779.0,81778.0,0.122282]
[1731330971461,1.502,81779.0,81776.0,0.14674]
[1731330971669,1.502,81779.0,81764.0,0.146763]
[1731330971670,1.5,81779.0,81775.0,0.122285]
[1731330971877,1.5,81779.0,81773.0,0.1]
[1731330971878,1.502,81779.0,81773.0,0.1]
[1731330972115,1.502,81779.0,81764.0,0.146763]
[1731330972116,0.002,81776.0,81745.0,0.005]
[1731330972339,0.002,81765.0,81750.0,0.18356146]
[1731330972552,0.0787,81764.0,81762.0,0.000843]
[1731330972776,1.5787,81764.0,81762.0,0.000843]
[1731330973202,1.5787,81764.0,81763.0,0.122304]
[1731330973634,1.5787,81764.0,81762.0,0.000843]
[1731330973848,0.002,81754.0,81752.0,0.18356146]
[1731330974057,0.24826121,81753.0,81752.0,0.18356146]
[1731330974263,0.25026121,81753.0,81752.0,0.18356146]
[1731330974471,0.002,81748.0,81747.0,0.122328]
[1731330974713,0.002,81751.0,81741.0,0.183505]
[1731330974933,0.12794221,81751.0,81741.0,0.183505]
[1731330975142,0.002,81744.0,81739.0,0.12234]
[1731330975368,0.002,81744.0,81742.0,0.122336]
[1731330975788,0.002,81744.0,81740.0,0.122338]
[1731330976035,0.002,81744.0,81742.0,0.122335]
[1731330976469,0.127348,81734.0,81720.0,0.18356146]
[1731330976690,0.13094221,81734.0,81722.0,0.183548]
[1731330976904,0.13294221,81734.0,81727.0,0.122358]
[1731330977137,0.25529021,81734.0,81725.0,0.122361]
[1731330977388,0.13294221,81734.0,81727.0,0.305894]
[1731330977596,0.25329021,81734.0,81728.0,0.122356]
[1731330978028,0.13094221,81734.0,81729.0,0.122354]
[1731330978235,0.244678,81740.0,81720.0,0.18356146]
[1731330978236,0.002,81740.0,81734.0,0.122348]
[1731330978458,0.002,81740.0,81734.0,0.122347]
[1731330978459,0.12594221,81739.0,81734.0,0.122347]
[1731330978684,0.122342,81738.0,81731.0,0.183527]
[1731330978912,0.002,81734.0,81727.0,0.183536]
[1731330979115,0.12594221,81737.0,81727.0,0.183536]
[1731330979348,0.25029021,81734.0,81727.0,0.122358]
[1731330979554,0.25029021,81734.0,81720.0,0.18356146]
[1731330979763,0.34219021,81734.0,81720.0,0.18356146]
[1731330979972,0.38769021,81734.0,81721.0,0.18356146]
[1731330980375,0.124366,81722.0,81721.0,0.18356146]
[1731330980598,0.24830821,81722.0,81721.0,0.18356146]
[1731330980799,1.74830821,81722.0,81716.0,0.122374]
[1731330980944,0.002,81715.0,81714.0,0.122378]
[1731330981138,1.622366,81722.0,81707.0,0.183582]
[1731330981139,1.5,81722.0,81707.0,0.183582]
[1731330981398,0.002,81718.0,81707.0,0.183582]
[1731330981615,0.002,81718.0,81710.0,0.18356146]
[1731330981616,0.12594221,81717.0,81710.0,0.18356146]
[1731330981818,0.12594221,81717.0,81715.0,0.122376]
[1731330982071,0.12594221,81717.0,81699.0,0.100844]
[1731330982072,0.12594221,81717.0,81713.0,0.122378]
[1731330982220,0.12594221,81717.0,81703.0,0.183591]
[1731330982421,0.002,81719.0,81699.0,0.100844]
[1731330982422,0.002,81719.0,81718.0,0.122372]
[1731330982908,1.5,81722.0,81719.0,0.12237]
[1731330983129,0.12594221,81721.0,81719.0,0.12237]
[1731330983342,0.12794221,81721.0,81717.0,0.122372]
[1731330983751,0.12794221,81721.0,81719.0,0.122369]
[1731330983752,0.12594221,81721.0,81719.0,0.122369]
[1731330983956,0.002,81719.0,81710.0,0.18356146]
[1731330984161,0.12594221,81721.0,81710.0,0.18356146]
[1731330984365,0.002,81720.0,81719.0,0.12237]
[1731330984572,0.12594221,81721.0,81707.0,0.183582]
[1731330984813,0.1239,81716.0,81702.0,0.18356146]
[1731330985044,0.1239,81716.0,81702.0,0.30595646]
[1731330985045,0.002,81703.0,81702.0,0.30595646]
[1731330985256,0.002,81704.0,81703.0,0.122394]
[1731330985466,1.62594221,81713.0,81702.0,0.183594]
[1731330985734,1.5,81713.0,81703.0,0.183591]
[1731330985946,0.1239,81716.0,81701.0,0.183596]
[1731330985947,0.0758,81716.0,81701.0,0.183596]
[1731330986151,0.0758,81716.0,81712.0,0.122379]
[1731330986575,0.0758,81716.0,81714.0,0.122376]
[1731330987037,0.005,81723.0,81683.0,0.18356146]
[1731330987038,0.005,81691.0,81683.0,0.18356146]
[1731330987265,0.25,81694.0,81683.0,0.18356146]
[1731330987266,0.246322,81684.0,81683.0,0.18356146]
[1731330987489,0.246322,81684.0,81672.0,0.18376146]
[1731330987490,0.132425,81682.0,81672.0,0.18376146]
[1731330987697,0.868748,81684.0,81672.0,0.18376146]
[1731330987698,0.129434,81676.0,81672.0,0.18376146]
[1731330988331,0.129434,81676.0,81672.0,0.0002]
[1731330988332,0.124439,81673.0,81672.0,0.0002]
[1731330988555,0.25038121,81673.0,81672.0,0.0002]
[1731330989038,0.122446,81668.0,81656.0,0.0133249]
[1731330989260,0.25538821,81668.0,81662.0,0.18356146]
[1731330990550,0.25538821,81668.0,81656.0,0.0133249]
[1731330990770,1.62594221,81668.0,81660.0,0.183687]
[1731330990982,1.62594221,81668.0,81667.0,0.372448]
[1731330991193,1.62594221,81668.0,81667.0,0.25]
[1731330991424,1.74838821,81668.0,81667.0,0.25]
[1731330991651,1.62594221,81668.0,81667.0,0.25]
[1731330991863,1.62594221,81668.0,81667.0,0.372448]
[1731330992280,1.62594221,81668.0,81667.0,0.25]
[1731330992485,1.62794221,81668.0,81667.0,0.25]
[1731330992695,0.12794221,81668.0,81667.0,0.25]
[1731330992897,0.12594221,81668.0,81667.0,0.25]
[1731330993104,0.24838821,81668.0,81667.0,0.25]
[1731330993309,0.25038821,81668.0,81667.0,0.25]
[1731330993744,0.45080353,81668.0,81667.0,0.25]
[1731330993963,0.12446,81659.0,81656.0,0.0133249]
[1731330994179,0.24840221,81659.0,81656.0,0.0133249]
[1731330994384,0.51040221,81659.0,81656.0,0.0133249]
[1731330994601,2.01040221,81659.0,81656.0,0.0133249]
[1731330994810,2.01040221,81659.0,81658.0,0.24619067]
[1731330995014,2.01040221,81659.0,81642.0,0.433927]
[1731330995015,0.005,81651.0,81643.0,0.18356146]
[1731330995234,0.255,81641.0,81620.0,0.001384]
[1731330995453,0.122491,81638.0,81637.0,0.18356146]
[1731330995675,0.1625307,81638.0,81635.0,0.122495]
[1731330995887,0.1625307,81637.0,81633.0,0.122498]
[1731330996108,0.12594221,81640.0,81633.0,0.183748]
[1731330996387,0.03658993,81639.0,81638.0,0.122491]
[1731330996601,0.03658993,81639.0,81635.0,0.183744]
[1731330996602,0.16253214,81639.0,81635.0,0.183744]
[1731330996856,0.03658993,81638.0,81627.0,0.183761]
[1731330997061,0.03658993,81637.0,81634.0,0.372496]
[1731330997271,0.03658993,81636.0,81634.0,0.25]
[1731330997503,0.16253214,81635.0,81634.0,0.25]
[1731330998689,0.12594221,81635.0,81634.0,0.25]
[1731331000029,0.24843821,81635.0,81634.0,0.25]
[1731331000311,0.58178479,81635.0,81634.0,0.25]
[1731331000555,0.634517,81621.0,81620.0,0.001384]
[1731331000804,0.75345921,81621.0,81620.0,0.001384]
[1731331001050,0.50345921,81621.0,81620.0,0.001384]
[1731331001263,0.50845921,81621.0,81620.0,0.001384]
[1731331001707,0.38594221,81621.0,81620.0,0.001384]
[1731331001919,0.51045921,81621.0,81620.0,0.001384]
[1731331002387,0.50345921,81621.0,81620.0,0.001384]
[1731331002608,0.50845921,81621.0,81620.0,0.001384]
[1731331002819,0.38094221,81621.0,81620.0,0.001384]
[1731331003032,2.00845921,81621.0,81620.0,0.001384]
[1731331003247,2.14062551,81621.0,81620.0,0.001384]
[1731331003450,2.26314251,81621.0,81620.0,0.001384]
[1731331003884,2.26314251,81621.0,81619.0,0.0219]
[1731331003885,0.482518,81620.0,81619.0,0.0219]
[1731331004163,0.60846021,81620.0,81619.0,0.0219]
[1731331004414,0.60846021,81620.0,81602.0,0.0176065]
[1731331004415,0.632544,81603.0,81602.0,0.0176065]
[1731331004625,0.01,81601.0,81590.0,0.001384]
[1731331004882,0.8872413,81594.0,81590.0,0.001384]
[1731331005099,0.134562,81591.0,81590.0,0.001384]
[1731331005326,0.26050421,81591.0,81590.0,0.001384]
[1731331005549,1.6625267,81591.0,81590.0,0.001384]
[1731331005766,1.6625267,81591.0,81590.0,0.123948]
[1731331006272,1.91603091,81591.0,81590.0,0.001384]
[1731331006495,2.049772,81591.0,81590.0,0.001384]
[1731331006727,1.91686844,81591.0,81590.0,0.001384]
[1731331006937,2.03943044,81591.0,81590.0,0.001384]
[1731331007171,1.91186844,81591.0,81590.0,0.001384]
[1731331007383,2.03443044,81591.0,81590.0,0.001384]
[1731331008101,2.28911374,81591.0,81590.0,0.001384]
[1731331008322,2.02743044,81591.0,81590.0,0.001384]
[1731331008554,2.02738876,81591.0,81590.0,0.001384]
[1731331009449,0.15482676,81591.0,81590.0,0.123948]
[1731331009672,0.12594221,81591.0,81590.0,0.123948]
[1731331009928,0.25,81599.0,81590.0,0.123948]
[1731331009929,0.122543,81604.0,81593.0,0.183837]
[1731331010157,0.255,81608.0,81593.0,0.183837]
[1731331010158,0.25,81597.0,81596.0,0.122555]
[1731331010368,0.25,81597.0,81590.0,0.001384]
[1731331010369,0.37594221,81597.0,81590.0,0.001384]
[1731331010573,0.12594221,81596.0,81590.0,0.001384]
[1731331010781,0.245113,81595.0,81590.0,0.001384]
[1731331010991,0.12594221,81594.0,81590.0,0.001384]
[1731331011206,0.12594221,81594.0,81592.0,0.122559]
[1731331011451,0.18556146,81609.0,81592.0,0.122559]
[1731331011452,0.87526146,81619.0,81593.0,0.0782]
[1731331011670,0.18356146,81619.0,81618.0,0.122521]
[1731331011955,0.18356146,81619.0,81597.0,0.005]
[1731331011956,0.122562,81591.0,81582.0,0.00625064]
[1731331012165,0.045,81614.0,81600.0,0.122548]
[1731331012166,0.01111607,81603.0,81600.0,0.122548]
[1731331012380,1.505,81602.0,81582.0,0.00625064]
[1731331012602,0.255,81591.0,81582.0,0.00625064]
[1731331012815,0.377562,81591.0,81582.0,0.00625064]
[1731331013035,0.25,81615.0,81590.0,0.203948]
[1731331013256,0.25,81615.0,81590.0,0.081384]
[1731331013257,0.18356146,81596.0,81590.0,0.081384]
[1731331013467,0.12594221,81595.0,81590.0,0.001384]
[1731331013711,0.12594221,81595.0,81591.0,0.183842]
[1731331013920,0.18356146,81603.0,81597.0,0.122552]
[1731331014150,0.18356146,81603.0,81590.0,0.001384]
[1731331014151,0.12594221,81602.0,81590.0,0.001384]
[1731331014371,0.12594221,81602.0,81596.0,0.122554]
[1731331014593,0.12594221,81602.0,81601.0,0.122547]
[1731331014803,0.12594221,81602.0,81590.0,0.001384]
[1731331015011,0.12594221,81602.0,81599.0,0.12255]
[1731331015239,0.12594221,81602.0,81590.0,0.001384]
[1731331015457,0.43356146,81617.0,81590.0,0.001384]
[1731331015666,0.18356146,81617.0,81616.0,0.122524]
[1731331016137,0.18356146,81627.0,81611.0,0.0831]
[1731331016348,0.18356146,81627.0,81612.0,0.183796]
[1731331016566,0.18356146,81627.0,81611.0,0.0831]
[1731331016776,0.01115686,81633.0,81630.0,0.122503]
[1731331017010,0.01115686,81632.0,81631.0,0.122502]
[1731331017222,0.25,81629.0,81619.0,0.122519]
[1731331017433,0.12594221,81628.0,81624.0,0.122512]
[1731331017646,0.01118474,81627.0,81611.0,0.0831]
[1731331017876,0.25,81629.0,81612.0,0.18356146]
[1731331017877,0.13712695,81626.0,81612.0,0.18356146]
[1731331018078,0.03,81624.0,81614.0,0.183791]
[1731331018322,0.12594221,81623.0,81619.0,0.122519]
[1731331018545,0.12594221,81623.0,81611.0,0.0831]
[1731331018756,0.12594221,81623.0,81622.0,0.122515]
[1731331019186,0.03,81624.0,81623.0,0.122514]
[1731331020296,0.04119445,81624.0,81623.0,0.122514]
[1731331020512,0.16713666,81624.0,81612.0,0.183795]
[1731331020730,0.122517,81621.0,81616.0,0.122523]
[1731331020969,0.12594221,81623.0,81613.0,0.183794]
[1731331021186,0.01119241,81622.0,81597.0,0.18356146]
[1731331021398,0.122519,81620.0,81614.0,0.122527]
[1731331021614,0.12594221,81619.0,81614.0,0.122527]
[1731331021856,0.01119843,81621.0,81601.0,0.1]
[1731331022069,0.03,81624.0,81599.0,0.0779]
[1731331022070,0.12594221,81623.0,81622.0,0.122515]
[1731331022299,0.03,81624.0,81623.0,0.122514]
[1731331022946,0.15594221,81624.0,81623.0,0.122514]
[1731331023151,0.15594221,81624.0,81605.0,0.1]
[1731331023371,0.15594221,81624.0,81623.0,0.122514]
[1731331023831,0.03,81624.0,81623.0,0.122514]
[1731331024279,0.03,81624.0,81618.0,0.183782]
[1731331024510,0.03,81624.0,81623.0,0.122514]
[1731331025171,1.53,81624.0,81623.0,0.122514]
[1731331025384,1.53,81624.0,81623.0,0.199214]
[1731331025385,0.03,81624.0,81623.0,0.199214]
[1731331025636,0.03,81624.0,81623.0,0.45815621]
[1731331026106,1.5,81647.0,81638.0,0.122491]
[1731331026107,0.18356146,81639.0,81638.0,0.122491]